fUST/lending_fUST_20240117
["ID","MTS","AMOUNT","RATE_DAILY","PERIOD"]
[311853837,1705473044201,-451.30321561,0.00022191,2]
[311853838,1705473044211,-500.0,0.00022191,2]
[311853839,1705473044220,-500.0,0.00022191,2]
[311853840,1705473044229,-1653.14,0.00022191,2]
[311853841,1705473044238,-500.0,0.00022191,2]
[311853842,1705473044248,-500.0,0.00022191,2]
[311853843,1705473044257,-500.0,0.00022191,2]
[311853844,1705473044266,-500.0,0.00022191,2]
[311853845,1705473044277,-500.0,0.00022191,2]
[311853846,1705473044290,-465.35602054,0.00022191,2]
[311853847,1705473044299,-500.0,0.00022191,2]
[311853848,1705473044308,-500.0,0.00022191,2]
[311853849,1705473044318,-364.85779853,0.00022191,2]
[311853850,1705473044327,-500.0,0.00022191,2]
[311853851,1705473044337,-547.15371215,0.00022191,2]
[311853852,1705473044346,-865.7,0.00022191,2]
[311853853,1705473044359,-997.65,0.00022191,2]
[311853854,1705473044368,-500.0,0.00022191,2]
[311853855,1705473044377,-500.0,0.00022191,2]
[311853856,1705473044386,-500.0,0.00022191,2]
[311853857,1705473044395,-500.0,0.00022191,2]
[311853858,1705473044405,-366.65755106,0.00022191,2]
[311853859,1705473044415,-508.30920079,0.00022191,2]
[311853860,1705473044425,-500.0,0.00022191,2]
[311853861,1705473044434,-500.0,0.00022191,2]
[311853862,1705473044443,-1942.51,0.00022191,2]
[311853863,1705473044453,-500.0,0.00022191,2]
[311853864,1705473044463,-647.08,0.00022191,2]
[311853865,1705473044472,-500.0,0.00022191,2]
[311853866,1705473044482,-500.0,0.00022191,2]
[311853867,1705473044491,-455.57136527,0.00022191,2]
[311853868,1705473044500,-500.0,0.00022191,2]
[311853869,1705473044508,-1371.58,0.00022191,2]
[311853870,1705473044517,-500.0,0.00022191,2]
[311853871,1705473044526,-732.62,0.00022191,2]
[311853872,1705473044536,-706.63,0.00022191,2]
[311853873,1705473044544,-615.77,0.00022191,2]
[311853874,1705473044553,-1111.59,0.00022191,2]
[311853875,1705473044562,-500.0,0.00022191,2]
[311853876,1705473044571,-325.42261473,0.00022191,2]
[311853877,1705473044580,-500.0,0.00022191,2]
[311853878,1705473044588,-563.69,0.00022191,2]
[311853879,1705473044597,-500.0,0.00022191,2]
[311853880,1705473044606,-500.0,0.00022191,2]
[311853881,1705473044615,-500.0,0.00022191,2]
[311853882,1705473044624,-500.0,0.00022191,2]
[311853883,1705473044632,-500.0,0.00022191,2]
[311853884,1705473044642,-328.04093624,0.00022191,2]
[311853885,1705473044650,-500.0,0.00022191,2]
[311853886,1705473044659,-490.92752769,0.00022191,2]
[311853887,1705473044667,-500.0,0.00022191,2]
[311853888,1705473044676,-500.0,0.00022191,2]
[311853889,1705473044685,-500.0,0.00022191,2]
[311853890,1705473044694,-1578.53,0.00022191,2]
[311853891,1705473044704,-500.0,0.00022191,2]
[311853892,1705473044713,-500.0,0.00022191,2]
[311853893,1705473044722,-500.0,0.00022191,2]
[311853894,1705473044732,-500.0,0.00022191,2]
[311853895,1705473044741,-500.0,0.00022191,2]
[311853896,1705473044750,-500.0,0.00022191,2]
[311853897,1705473044760,-500.0,0.00022191,2]
[311853898,1705473044769,-434.48775725,0.00022191,2]
[311853899,1705473044779,-500.0,0.00022191,2]
[311853900,1705473044788,-500.0,0.00022191,2]
[311853901,1705473044797,-678.77,0.00022191,2]
[311853902,1705473044806,-456.79877671,0.00022191,2]
[311853903,1705473044815,-500.0,0.00022191,2]
[311853904,1705473044878,-500.0,0.00022191,2]
[311853905,1705473044888,-3458.05,0.00022191,2]
[311853906,1705473044898,-500.0,0.00022191,2]
[311853907,1705473044908,-3263.44,0.00022191,2]
[311853908,1705473044918,-1850.79,0.00022191,2]
[311853909,1705473044927,-267.81115023,0.00022191,2]
[311853910,1705473044936,-500.0,0.00022191,2]
[311853911,1705473044945,-524.79,0.00022191,2]
[311853912,1705473044954,-500.0,0.00022191,2]
[311853913,1705473044964,-522.58503635,0.00022191,2]
[311853914,1705473044973,-500.0,0.00022191,2]
[311853915,1705473044982,-501.27,0.00022191,2]
[311853916,1705473044991,-4580.02,0.00022191,2]
[311853917,1705473045000,-500.0,0.00022191,2]
[311853918,1705473045010,-500.0,0.00022191,2]
[311853919,1705473045019,-500.0,0.00022191,2]
[311853920,1705473045028,-921.94,0.00022191,2]
[311853921,1705473045037,-18556.37,0.00022191,2]
[311853922,1705473045047,-500.0,0.00022191,2]
[311853923,1705473045056,-331.70357331,0.00022191,2]
[311853924,1705473045066,-500.0,0.00022191,2]
[311853925,1705473045075,-980.64,0.00022191,2]
[311853926,1705473045084,-1151.16,0.00022191,2]
[311853927,1705473045094,-500.0,0.00022191,2]
[311853928,1705473045103,-10118.6,0.00022191,2]
[311853929,1705473045112,-322.25229753,0.00022191,2]
[311853930,1705473045122,-500.0,0.00022191,2]
[311853931,1705473045131,-2440.75,0.00022191,2]
[311853932,1705473045140,-500.0,0.00022191,2]
[311853933,1705473045149,-500.0,0.00022191,2]
[311853934,1705473045159,-500.0,0.00022191,2]
[311853935,1705473045168,-500.0,0.00022191,2]
[311853936,1705473045177,-500.0,0.00022191,2]
[311853937,1705473045186,-3959.88,0.00022191,2]
[311853938,1705473045196,-500.0,0.00022191,2]
[311853939,1705473045205,-500.0,0.00022191,2]
[311853940,1705473045215,-1454.61,0.00022191,2]
[311853941,1705473045224,-500.0,0.00022191,2]
[311853942,1705473045234,-1647.0,0.00022191,2]
[311853943,1705473045245,-500.0,0.00022191,2]
[311853944,1705473045255,-500.0,0.00022191,2]
[311853945,1705473045264,-500.0,0.00022191,2]
[311853946,1705473045274,-1041.43,0.00022191,2]
[311853947,1705473045288,-3434.65,0.00022191,2]
[311853948,1705473045298,-2052.68,0.00022191,2]
[311853949,1705473045307,-4657.39,0.00022191,2]
[311853950,1705473045319,-500.0,0.00022191,2]
[311853951,1705473045328,-1123.51,0.00022191,2]
[311853952,1705473045338,-500.0,0.00022191,2]
[311853953,1705473045348,-917.15,0.00022191,2]
[311853955,1705473045361,-406.59514001,0.00022191,2]
[311853957,1705473045371,-421.13330795,0.00022191,2]
[311853959,1705473045381,-578.07,0.00022191,2]
[311853961,1705473045390,-500.0,0.00022191,2]
[311853963,1705473045399,-500.0,0.00022191,2]
[311853965,1705473045408,-1676.44,0.00022191,2]
[311853967,1705473045417,-619.47,0.00022191,2]
[311853968,1705473045426,-698.49,0.00022191,2]
[311853969,1705473045435,-500.0,0.00022191,2]
[311853970,1705473045444,-2072.28,0.00022191,2]
[311853972,1705473045454,-592.38,0.00022191,2]
[311853973,1705473045463,-500.0,0.00022191,2]
[311853974,1705473045472,-2266.9,0.00022191,2]
[311853975,1705473045482,-9177.6,0.00022191,2]
[311853976,1705473045491,-500.0,0.00022191,2]
[311853977,1705473045501,-500.0,0.00022191,2]
[311853978,1705473045510,-500.0,0.00022191,2]
[311853979,1705473045518,-1254.05,0.00022191,2]
[311853980,1705473045527,-11512.07,0.00022191,2]
[311853981,1705473045536,-20281.26,0.00022191,2]
[311853982,1705473045545,-500.0,0.00022191,2]
[311853983,1705473045553,-1609.47916762,0.00022283,2]
[311853984,1705473045562,-151.0,0.00022328,2]
[311853985,1705473045571,-408.310748,0.00022328,2]
[311853987,1705473045581,-408.310748,0.00022328,2]
[311853988,1705473045589,-697.423412,0.00022328,2]
[311853989,1705473045599,-697.423412,0.00022328,2]
[311853990,1705473045608,-697.423412,0.00022328,2]
[311853991,1705473045617,-697.423412,0.00022328,2]
[311853992,1705473045627,-500.0,0.00022328,2]
[311853993,1705473045636,-500.0,0.00022328,2]
[311853994,1705473045645,-500.0,0.00022328,2]
[311853995,1705473045654,-500.0,0.00022328,2]
[311853997,1705473045664,-586.54466235,0.00022328,2]
[311853998,1705473045673,-500.0,0.00022328,2]
[311853999,1705473045683,-500.0,0.00022328,2]
[311854000,1705473045692,-596.62,0.00022328,2]
[311854001,1705473045701,-507.03929807,0.00022328,2]
[311854002,1705473045761,-222.61017779,0.00022328,2]
[311854003,1705473045771,-2062.11,0.00022328,2]
[311854005,1705473045780,-535.84483329,0.00022328,2]
[311854006,1705473045789,-500.0,0.00022328,2]
[311854007,1705473045799,-624.52,0.00022328,2]
[311854008,1705473045808,-500.0,0.00022328,2]
[311854009,1705473045817,-500.0,0.00022328,2]
[311854010,1705473045826,-500.0,0.00022328,2]
[311854011,1705473045835,-500.0,0.00022328,2]
[311854012,1705473045845,-500.0,0.00022328,2]
[311854013,1705473045854,-500.0,0.00022328,2]
[311854015,1705473045863,-500.0,0.00022328,2]
[311854016,1705473045872,-500.0,0.00022328,2]
[311854017,1705473045881,-500.0,0.00022328,2]
[311854018,1705473045890,-500.0,0.00022328,2]
[311854019,1705473045899,-500.0,0.00022328,2]
[311854020,1705473045909,-1170.93,0.00022328,2]
[311854022,1705473045918,-500.0,0.00022328,2]
[311854023,1705473045927,-500.0,0.00022328,2]
[311854024,1705473045936,-500.0,0.00022328,2]
[311854025,1705473045945,-500.0,0.00022328,2]
[311854026,1705473045955,-500.0,0.00022328,2]
[311854027,1705473045964,-500.0,0.00022328,2]
[311854028,1705473045973,-550.0,0.00022328,2]
[311854029,1705473045983,-500.0,0.00022328,2]
[311854030,1705473045992,-500.0,0.00022328,2]
[311854031,1705473046001,-1095.08,0.00022328,2]
[311854032,1705473046010,-795.62,0.00022328,2]
[311854033,1705473046020,-555.33,0.00022328,2]
[311854034,1705473046029,-500.0,0.00022328,2]
[311854035,1705473046038,-500.0,0.00022328,2]
[311854036,1705473046047,-500.0,0.00022328,2]
[311854037,1705473046056,-1029.01,0.00022328,2]
[311854038,1705473046065,-580.42,0.00022328,2]
[311854039,1705473046074,-505.10395311,0.00022328,2]
[311854040,1705473046083,-500.0,0.00022328,2]
[311854041,1705473046093,-500.0,0.00022328,2]
[311854042,1705473046101,-587.34476944,0.00022328,2]
[311854043,1705473046111,-500.0,0.00022328,2]
[311854044,1705473046120,-500.0,0.00022328,2]
[311854045,1705473046129,-500.0,0.00022328,2]
[311854046,1705473046138,-335.31131555,0.00022328,2]
[311854047,1705473046159,-1653.14,0.00022328,2]
[311854048,1705473046176,-500.0,0.00022328,2]
[311854049,1705473046195,-507.15349144,0.00022328,2]
[311854050,1705473046214,-500.0,0.00022328,2]
[311854051,1705473046231,-500.0,0.00022328,2]
[311854052,1705473046248,-500.0,0.00022328,2]
[311854053,1705473046266,-500.0,0.00022328,2]
[311854054,1705473046285,-500.0,0.00022328,2]
[311854055,1705473046302,-500.0,0.00022328,2]
[311854056,1705473046321,-865.7,0.00022328,2]
[311854057,1705473046340,-997.65,0.00022328,2]
[311854058,1705473046359,-500.0,0.00022328,2]
[311854059,1705473046372,-500.0,0.00022328,2]
[311854060,1705473046389,-500.0,0.00022328,2]
[311854061,1705473046404,-500.0,0.00022328,2]
[311854062,1705473046418,-500.0,0.00022328,2]
[311854063,1705473046432,-500.0,0.00022328,2]
[311854064,1705473046446,-1942.51,0.00022328,2]
[311854065,1705473046461,-500.0,0.00022328,2]
[311854066,1705473046475,-647.08,0.00022328,2]
[311854067,1705473046490,-506.0700257,0.00022328,2]
[311854068,1705473046504,-500.0,0.00022328,2]
[311854069,1705473046518,-500.0,0.00022328,2]
[311854070,1705473046533,-1371.58,0.00022328,2]
[311854071,1705473046547,-500.0,0.00022328,2]
[311854072,1705473046562,-732.62,0.00022328,2]
[311854073,1705473046577,-706.63,0.00022328,2]
[311854074,1705473046592,-615.77,0.00022328,2]
[311854075,1705473046606,-1111.59,0.00022328,2]
[311854076,1705473046620,-500.0,0.00022328,2]
[311854077,1705473046634,-500.0,0.00022328,2]
[311854078,1705473046648,-563.69,0.00022328,2]
[311854079,1705473046662,-500.0,0.00022328,2]
[311854080,1705473046676,-500.0,0.00022328,2]
[311854081,1705473046690,-500.0,0.00022328,2]
[311854082,1705473046705,-523.68136719,0.00022328,2]
[311854083,1705473046718,-500.0,0.00022328,2]
[311854084,1705473046732,-500.0,0.00022328,2]
[311854085,1705473046748,-327.43482098,0.00022328,2]
[311854086,1705473046821,-500.0,0.00022328,2]
[311854087,1705473046852,-506.80923371,0.00022328,2]
[311854088,1705473046861,-1578.53,0.00022328,2]
[311854089,1705473046870,-500.0,0.00022328,2]
[311854090,1705473046880,-500.0,0.00022328,2]
[311854091,1705473046890,-389.81459753,0.00022328,2]
[311854092,1705473046899,-500.0,0.00022328,2]
[311854093,1705473046909,-500.0,0.00022328,2]
[311854094,1705473046918,-500.0,0.00022328,2]
[311854095,1705473046927,-500.0,0.00022328,2]
[311854096,1705473046936,-209.73633126,0.00022328,2]
[311854097,1705473046946,-500.0,0.00022328,2]
[311854098,1705473046955,-678.77,0.00022328,2]
[311854099,1705473046964,-500.0,0.00022328,2]
[311854100,1705473046973,-500.0,0.00022328,2]
[311854101,1705473046981,-3458.05,0.00022328,2]
[311854102,1705473046991,-500.0,0.00022328,2]
[311854103,1705473047001,-3263.44,0.00022328,2]
[311854104,1705473047010,-1850.79,0.00022328,2]
[311854105,1705473047019,-500.0,0.00022328,2]
[311854106,1705473047028,-524.79,0.00022328,2]
[311854107,1705473047037,-500.0,0.00022328,2]
[311854108,1705473047047,-500.0,0.00022328,2]
[311854109,1705473047056,-501.27,0.00022328,2]
[311854110,1705473047065,-4580.02,0.00022328,2]
[311854111,1705473047074,-500.0,0.00022328,2]
[311854112,1705473047084,-500.0,0.00022328,2]
[311854113,1705473047093,-500.0,0.00022328,2]
[311854114,1705473047102,-921.94,0.00022328,2]
[311854115,1705473047111,-18556.37,0.00022328,2]
[311854116,1705473047121,-500.0,0.00022328,2]
[311854117,1705473047130,-500.0,0.00022328,2]
[311854118,1705473047139,-980.64,0.00022328,2]
[311854119,1705473047149,-1151.16,0.00022328,2]
[311854120,1705473047158,-500.0,0.00022328,2]
[311854121,1705473047167,-10118.6,0.00022328,2]
[311854122,1705473047177,-500.0,0.00022328,2]
[311854123,1705473047186,-2440.75,0.00022328,2]
[311854124,1705473047195,-500.0,0.00022328,2]
[311854125,1705473047204,-508.23812159,0.00022328,2]
[311854126,1705473047214,-500.0,0.00022328,2]
[311854127,1705473047223,-500.0,0.00022328,2]
[311854128,1705473047233,-500.0,0.00022328,2]
[311854129,1705473047242,-3959.88,0.00022328,2]
[311854130,1705473047251,-500.0,0.00022328,2]
[311854131,1705473047260,-500.0,0.00022328,2]
[311854132,1705473047270,-1454.61,0.00022328,2]
[311854133,1705473047281,-500.0,0.00022328,2]
[311854134,1705473047292,-1647.0,0.00022328,2]
[311854135,1705473047301,-500.0,0.00022328,2]
[311854136,1705473047310,-500.0,0.00022328,2]
[311854137,1705473047319,-1041.43,0.00022328,2]
[311854138,1705473047329,-3434.65,0.00022328,2]
[311854139,1705473047339,-500.0,0.00022328,2]
[311854140,1705473047349,-2052.68,0.00022328,2]
[311854141,1705473047358,-4657.39,0.00022328,2]
[311854142,1705473047368,-500.0,0.00022328,2]
[311854143,1705473047377,-1123.51,0.00022328,2]
[311854144,1705473047386,-500.0,0.00022328,2]
[311854145,1705473047396,-917.15,0.00022328,2]
[311854146,1705473047405,-578.07,0.00022328,2]
[311854147,1705473047414,-500.0,0.00022328,2]
[311854148,1705473047423,-500.0,0.00022328,2]
[311854149,1705473047432,-1676.44,0.00022328,2]
[311854150,1705473047442,-619.47,0.00022328,2]
[311854151,1705473047452,-698.49,0.00022328,2]
[311854152,1705473047461,-500.0,0.00022328,2]
[311854153,1705473047471,-2072.28,0.00022328,2]
[311854154,1705473047480,-592.38,0.00022328,2]
[311854155,1705473047489,-500.0,0.00022328,2]
[311854156,1705473047498,-2266.9,0.00022328,2]
[311854157,1705473047506,-9177.6,0.00022328,2]
[311854158,1705473047515,-201.66657356,0.00022328,2]
[311854159,1705473047524,-500.0,0.00022328,2]
[311854160,1705473047533,-1254.05,0.00022328,2]
[311854161,1705473047542,-500.0,0.00022328,2]
[311854162,1705473047550,-11512.07,0.00022328,2]
[311854163,1705473047559,-20281.26,0.00022328,2]
[311854164,1705473047568,-500.0,0.00022328,2]
[311854165,1705473047577,-166.666666,0.00022431,2]
[311854166,1705473047585,-151.0,0.00022465,2]
[311854167,1705473047594,-151.0,0.00022465,2]
[311854168,1705473047602,-151.0,0.00022465,2]
[311854169,1705473047611,-152.157588,0.00022465,2]
[311854170,1705473047620,-408.310748,0.00022465,2]
[311854171,1705473047628,-408.310748,0.00022465,2]
[311854172,1705473047637,-697.423412,0.00022465,2]
[311854173,1705473047646,-697.423412,0.00022465,2]
[311854174,1705473047654,-638.48739459,0.00022465,2]
[311854175,1705473047663,-500.0,0.00022465,2]
[311854176,1705473047672,-500.0,0.00022465,2]
[311854177,1705473047680,-500.0,0.00022465,2]
[311854178,1705473047689,-500.0,0.00022465,2]
[311854179,1705473047699,-500.0,0.00022465,2]
[311854180,1705473047708,-596.62,0.00022465,2]
[311854181,1705473047717,-2062.11,0.00022465,2]
[311854182,1705473047726,-470.46759968,0.00022465,2]
[311854183,1705473047735,-624.52,0.00022465,2]
[311854184,1705473047744,-500.0,0.00022465,2]
[311854185,1705473047753,-500.0,0.00022465,2]
[311854186,1705473047762,-500.0,0.00022465,2]
[311854187,1705473047771,-500.0,0.00022465,2]
[311854188,1705473047781,-500.0,0.00022465,2]
[311854189,1705473047790,-500.0,0.00022465,2]
[311854190,1705473047799,-505.04589673,0.00022465,2]
[311854191,1705473047808,-533.42815237,0.00022465,2]
[311854192,1705473047817,-500.0,0.00022465,2]
[311854193,1705473047826,-500.0,0.00022465,2]
[311854194,1705473047835,-500.0,0.00022465,2]
[311854195,1705473047845,-1170.93,0.00022465,2]
[311854196,1705473047854,-500.0,0.00022465,2]
[311854197,1705473047863,-500.0,0.00022465,2]
[311854198,1705473047873,-500.0,0.00022465,2]
[311854199,1705473047882,-451.09078181,0.00022465,2]
[311854200,1705473047892,-500.0,0.00022465,2]
[311854201,1705473047901,-500.0,0.00022465,2]
[311854202,1705473047910,-500.0,0.00022465,2]
[311854203,1705473047920,-500.0,0.00022465,2]
[311854204,1705473047929,-1095.08,0.00022465,2]
[311854205,1705473047938,-795.62,0.00022465,2]
[311854206,1705473047948,-555.33,0.00022465,2]
[311854207,1705473047957,-500.0,0.00022465,2]
[311854208,1705473047966,-500.0,0.00022465,2]
[311854209,1705473047975,-500.0,0.00022465,2]
[311854210,1705473047985,-1029.01,0.00022465,2]
[311854211,1705473047994,-580.42,0.00022465,2]
[311854212,1705473048003,-500.0,0.00022465,2]
[311854213,1705473048012,-500.0,0.00022465,2]
[311854214,1705473048021,-500.0,0.00022465,2]
[311854215,1705473048030,-465.15047462,0.00022465,2]
[311854216,1705473048039,-500.0,0.00022465,2]
[311854217,1705473048048,-1653.14,0.00022465,2]
[311854218,1705473048112,-500.0,0.00022465,2]
[311854219,1705473048132,-500.0,0.00022465,2]
[311854220,1705473048141,-500.0,0.00022465,2]
[311854221,1705473048151,-500.0,0.00022465,2]
[311854222,1705473048160,-500.0,0.00022465,2]
[311854223,1705473048170,-500.0,0.00022465,2]
[311854224,1705473048180,-500.0,0.00022465,2]
[311854225,1705473048189,-865.7,0.00022465,2]
[311854226,1705473048199,-997.65,0.00022465,2]
[311854227,1705473048208,-500.0,0.00022465,2]
[311854228,1705473048217,-500.0,0.00022465,2]
[311854229,1705473048227,-505.28582934,0.00022465,2]
[311854230,1705473048236,-500.0,0.00022465,2]
[311854231,1705473048246,-500.0,0.00022465,2]
[311854232,1705473048256,-500.0,0.00022465,2]
[311854233,1705473048265,-1942.51,0.00022465,2]
[311854234,1705473048274,-500.0,0.00022465,2]
[311854235,1705473048288,-647.08,0.00022465,2]
[311854236,1705473048297,-500.0,0.00022465,2]
[311854237,1705473048306,-500.0,0.00022465,2]
[311854238,1705473048315,-1371.58,0.00022465,2]
[311854239,1705473048326,-500.0,0.00022465,2]
[311854240,1705473048336,-732.62,0.00022465,2]
[311854241,1705473048345,-706.63,0.00022465,2]
[311854242,1705473048354,-615.77,0.00022465,2]
[311854243,1705473048366,-1111.59,0.00022465,2]
[311854244,1705473048377,-500.0,0.00022465,2]
[311854245,1705473048387,-500.0,0.00022465,2]
[311854246,1705473048396,-563.69,0.00022465,2]
[311854247,1705473048406,-610.97756718,0.00022465,2]
[311854248,1705473048416,-500.0,0.00022465,2]
[311854249,1705473048425,-500.0,0.00022465,2]
[311854250,1705473048435,-500.0,0.00022465,2]
[311854251,1705473048446,-500.0,0.00022465,2]
[311854252,1705473048456,-500.0,0.00022465,2]
[311854253,1705473048465,-1578.53,0.00022465,2]
[311854254,1705473048475,-500.0,0.00022465,2]
[311854255,1705473048485,-500.0,0.00022465,2]
[311854256,1705473048493,-500.0,0.00022465,2]
[311854257,1705473048503,-500.0,0.00022465,2]
[311854258,1705473048512,-500.0,0.00022465,2]
[311854259,1705473048522,-500.0,0.00022465,2]
[311854260,1705473048531,-500.0,0.00022465,2]
[311854261,1705473048540,-678.77,0.00022465,2]
[311854262,1705473048550,-500.0,0.00022465,2]
[311854263,1705473048559,-500.0,0.00022465,2]
[311854264,1705473048579,-3458.05,0.00022465,2]
[311854265,1705473048604,-500.0,0.00022465,2]
[311854266,1705473048625,-3263.44,0.00022465,2]
[311854267,1705473048646,-1850.79,0.00022465,2]
[311854268,1705473048667,-519.27138741,0.00022465,2]
[311854269,1705473048688,-524.79,0.00022465,2]
[311854270,1705473048708,-500.0,0.00022465,2]
[311854271,1705473048718,-500.0,0.00022465,2]
[311854272,1705473048727,-501.27,0.00022465,2]
[311854273,1705473048736,-4580.02,0.00022465,2]
[311854274,1705473048746,-385.46353208,0.00022465,2]
[311854275,1705473048755,-500.0,0.00022465,2]
[311854276,1705473048764,-503.88032041,0.00022465,2]
[311854277,1705473048774,-921.94,0.00022465,2]
[311854278,1705473048815,-18556.37,0.00022465,2]
[311854279,1705473048825,-500.0,0.00022465,2]
[311854280,1705473048835,-500.0,0.00022465,2]
[311854281,1705473048844,-980.64,0.00022465,2]
[311854282,1705473048853,-1151.16,0.00022465,2]
[311854283,1705473048862,-500.0,0.00022465,2]
[311854284,1705473048871,-10118.6,0.00022465,2]
[311854285,1705473048881,-500.0,0.00022465,2]
[311854286,1705473048890,-2440.75,0.00022465,2]
[311854287,1705473048899,-500.0,0.00022465,2]
[311854288,1705473048908,-500.0,0.00022465,2]
[311854289,1705473048917,-500.0,0.00022465,2]
[311854290,1705473048926,-500.0,0.00022465,2]
[311854291,1705473048936,-3959.88,0.00022465,2]
[311854292,1705473048945,-500.0,0.00022465,2]
[311854293,1705473048954,-500.0,0.00022465,2]
[311854294,1705473048964,-1454.61,0.00022465,2]
[311854295,1705473048973,-500.0,0.00022465,2]
[311854296,1705473048982,-1647.0,0.00022465,2]
[311854297,1705473048991,-500.0,0.00022465,2]
[311854298,1705473049001,-500.0,0.00022465,2]
[311854299,1705473049011,-1041.43,0.00022465,2]
[311854300,1705473049021,-3434.65,0.00022465,2]
[311854301,1705473049031,-500.0,0.00022465,2]
[311854302,1705473049040,-2052.68,0.00022465,2]
[311854303,1705473049050,-4657.39,0.00022465,2]
[311854304,1705473049059,-500.0,0.00022465,2]
[311854305,1705473049068,-1123.51,0.00022465,2]
[311854306,1705473049077,-500.0,0.00022465,2]
[311854307,1705473049086,-917.15,0.00022465,2]
[311854308,1705473049095,-578.07,0.00022465,2]
[311854309,1705473049104,-505.3528232,0.00022465,2]
[311854310,1705473049113,-387.9049843,0.00022465,2]
[311854311,1705473049124,-1676.44,0.00022465,2]
[311854312,1705473049133,-619.47,0.00022465,2]
[311854313,1705473049143,-698.49,0.00022465,2]
[311854314,1705473049152,-500.0,0.00022465,2]
[311854315,1705473049161,-2072.28,0.00022465,2]
[311854316,1705473049170,-592.38,0.00022465,2]
[311854317,1705473049179,-500.0,0.00022465,2]
[311854318,1705473049188,-2266.9,0.00022465,2]
[311854319,1705473049197,-9177.6,0.00022465,2]
[311854320,1705473049206,-500.0,0.00022465,2]
[311854321,1705473049215,-1254.05,0.00022465,2]
[311854322,1705473049225,-500.0,0.00022465,2]
[311854323,1705473049234,-11512.07,0.00022465,2]
[311854324,1705473049243,-20281.26,0.00022465,2]
[311854325,1705473049253,-234.02972932,0.00022465,2]
[311854326,1705473049262,-368.85650613,0.00022601,2]
[311854327,1705473049272,-187.00427533,0.00022601,2]
[311854328,1705473049284,-173.939081,0.00022602,2]
[311854329,1705473049293,-408.310748,0.00022602,2]
[311854330,1705473049302,-408.310748,0.00022602,2]
[311854331,1705473049311,-697.423412,0.00022602,2]
[311854332,1705473049319,-697.423412,0.00022602,2]
[311854333,1705473049330,-500.0,0.00022602,2]
[311854334,1705473049339,-500.0,0.00022602,2]
[311854335,1705473049347,-500.0,0.00022602,2]
[311854336,1705473049356,-500.0,0.00022602,2]
[311854337,1705473049367,-182.9364757,0.00022602,2]
[311854338,1705473049376,-596.62,0.00022602,2]
[311854339,1705473049385,-2062.11,0.00022602,2]
[311854340,1705473049450,-624.52,0.00022602,2]
[311854341,1705473049459,-346.62671906,0.00022602,2]
[311854342,1705473049468,-500.0,0.00022602,2]
[311854343,1705473049477,-500.0,0.00022602,2]
[311854344,1705473049486,-500.0,0.00022602,2]
[311854345,1705473049496,-444.85689834,0.00022602,2]
[311854346,1705473049505,-500.0,0.00022602,2]
[311854347,1705473049513,-500.0,0.00022602,2]
[311854348,1705473049522,-500.0,0.00022602,2]
[311854349,1705473049531,-500.0,0.00022602,2]